[Event "Early Titled Tuesday Blitz | February 8 2022"]
[White "Avila Pavas, Santiago"]
[Black "Estrada Nieto, Julian"]
[WhiteFideId "4437128"]
[BlackFideId "5101018"]
[WhiteElo "2242"]
[BlackElo "2246"]
[Result "1-0"]
[Round "06"]
[TimeControl "180+1"]
[Date "2022.02.08"]
[WhiteClock "0:01:14"]
[BlackClock "0:00:04"]

1. d4 {[%clk 0:03:00]}  d5 {[%clk 0:02:59]} 2. Nf3 {[%clk 0:03:01]}  Nf6 {[%clk 0:02:59]} 3. Bf4 {[%clk 0:03:01]}  c5 {[%clk 0:02:58]} 4. e3 {[%clk 0:03:02]}  Nc6 {[%clk 0:02:58]} 5. Nbd2 {[%clk 0:03:02]}  e6 {[%clk 0:02:58]} 6. Bb5 {[%clk 0:03:00]}  cxd4 {[%clk 0:02:49]} 7. exd4 {[%clk 0:02:59]}  Bd7 {[%clk 0:02:42]} 8. O-O {[%clk 0:02:58]}  Be7 {[%clk 0:02:40]} 9. c3 {[%clk 0:02:57]}  O-O {[%clk 0:02:39]} 10. Bd3 {[%clk 0:02:53]}  Nh5 {[%clk 0:02:37]} 11. Be3 {[%clk 0:02:43]}  f5 {[%clk 0:02:34]} 12. Nb3 {[%clk 0:02:43]}  b6 {[%clk 0:02:17]} 13. Re1 {[%clk 0:02:43]}  Bd6 {[%clk 0:02:08]} 14. Ne5 {[%clk 0:02:43]}  Nf6 {[%clk 0:02:05]} 15. Bg5 {[%clk 0:02:38]}  Ne7 {[%clk 0:01:45]} 16. f3 {[%clk 0:02:31]}  h6 {[%clk 0:01:42]} 17. Bh4 {[%clk 0:02:31]}  Be8 {[%clk 0:01:29]} 18. Qe2 {[%clk 0:02:28]}  Qc8 {[%clk 0:01:11]} 19. Ba6 {[%clk 0:02:27]}  Qc7 {[%clk 0:01:09]} 20. Bb5 {[%clk 0:02:24]}  Bh5 {[%clk 0:01:01]} 21. Nd7 {[%clk 0:02:14]}  Ne4 {[%clk 0:00:51]} 22. g4 {[%clk 0:01:51]}  fxg4 {[%clk 0:00:39]} 23. fxe4 {[%clk 0:01:52]}  Ng6 {[%clk 0:00:34]} 24. e5 {[%clk 0:01:35]}  Nxh4 {[%clk 0:00:32]} 25. exd6 {[%clk 0:01:35]}  Qxd6 {[%clk 0:00:30]} 26. Qxe6+ {[%clk 0:01:35]}  Qxe6 {[%clk 0:00:26]} 27. Rxe6 {[%clk 0:01:36]}  Nf3+ {[%clk 0:00:24]} 28. Kh1 {[%clk 0:01:36]}  Rf4 {[%clk 0:00:17]} 29. Bc6 {[%clk 0:01:30]}  Rd8 {[%clk 0:00:16]} 30. Ne5 {[%clk 0:01:20]}  Nxe5 {[%clk 0:00:16]} 31. Rxe5 {[%clk 0:01:20]}  Bf7 {[%clk 0:00:14]} 32. Kg2 {[%clk 0:01:19]}  Rf3 {[%clk 0:00:14]} 33. Rf1 {[%clk 0:01:18]}  Rxf1 {[%clk 0:00:13]} 34. Kxf1 {[%clk 0:01:19]}  g5 {[%clk 0:00:12]} 35. Nc1 {[%clk 0:01:18]}  Kg7 {[%clk 0:00:12]} 36. Nd3 {[%clk 0:01:16]}  Kf6 {[%clk 0:00:13]} 37. Nb4 {[%clk 0:01:17]}  Be6 {[%clk 0:00:11]} 38. Bxd5 {[%clk 0:01:16]}  Bc8 {[%clk 0:00:10]} 39. Bg2 {[%clk 0:01:15]}  a5 {[%clk 0:00:09]} 40. Nd5+ {[%clk 0:01:15]}  Kg6 {[%clk 0:00:08]} 41. Nxb6 {[%clk 0:01:15]}  Bf5 {[%clk 0:00:06]} 42. Be4 {[%clk 0:01:14]}  Bxe4 {[%clk 0:00:05]} 43. Rxe4 {[%clk 0:01:15]}  Kf5 {[%clk 0:00:04]} 44. Re5+ {[%clk 0:01:13]}  Kf4 {[%clk 0:00:05]} 45. Nd5+ {[%clk 0:01:14]}  Kf3 {[%clk 0:00:04]} 46. Re3# {[%clk 0:01:14]} 1-0


[Site "https://www.chess.com"]

[Event "Early Titled Tuesday Blitz | February 8 2022"]
[White "Baches Garcia, Guillermo"]
[Black "Ovetchkin, Roman"]
[WhiteFideId "2209764"]
[BlackFideId "4119991"]
[WhiteElo "2459"]
[BlackElo "2409"]
[Result "0-1"]
[Round "06"]
[TimeControl "180+1"]
[Date "2022.02.08"]
[WhiteClock "0:00:10"]
[BlackClock "0:00:02"]

1. e4 {[%clk 0:03:00]}  c6 {[%clk 0:02:58]} 2. Nc3 {[%clk 0:03:00]}  d5 {[%clk 0:02:59]} 3. Nf3 {[%clk 0:03:00]}  dxe4 {[%clk 0:02:59]} 4. Nxe4 {[%clk 0:03:01]}  Nf6 {[%clk 0:02:59]} 5. Qe2 {[%clk 0:03:01]}  Nxe4 {[%clk 0:02:59]} 6. Qxe4 {[%clk 0:03:02]}  Nd7 {[%clk 0:02:59]} 7. d4 {[%clk 0:03:02]}  Nf6 {[%clk 0:02:59]} 8. Qf4 {[%clk 0:03:02]}  g6 {[%clk 0:02:33]} 9. Be2 {[%clk 0:02:45]}  Bg7 {[%clk 0:02:32]} 10. O-O {[%clk 0:02:45]}  O-O {[%clk 0:02:32]} 11. c3 {[%clk 0:02:38]}  Bf5 {[%clk 0:02:23]} 12. Rd1 {[%clk 0:02:32]}  Qb6 {[%clk 0:02:22]} 13. a4 {[%clk 0:02:28]}  a5 {[%clk 0:02:05]} 14. h3 {[%clk 0:02:28]}  Rfd8 {[%clk 0:01:57]} 15. Ne5 {[%clk 0:02:19]}  Be6 {[%clk 0:01:53]} 16. Nd3 {[%clk 0:01:55]}  Bc4 {[%clk 0:01:45]} 17. Qh4 {[%clk 0:01:47]}  Bxd3 {[%clk 0:01:09]} 18. Bxd3 {[%clk 0:01:41]}  c5 {[%clk 0:01:09]} 19. dxc5 {[%clk 0:01:35]}  Qxc5 {[%clk 0:01:09]} 20. Be3 {[%clk 0:01:33]}  Qc7 {[%clk 0:01:08]} 21. Bb5 {[%clk 0:01:23]}  Nd5 {[%clk 0:01:02]} 22. Bg5 {[%clk 0:01:14]}  Bf6 {[%clk 0:00:59]} 23. Bxf6 {[%clk 0:01:04]}  Nxf6 {[%clk 0:00:58]} 24. Qh6 {[%clk 0:00:44]}  Rac8 {[%clk 0:00:47]} 25. Re1 {[%clk 0:00:43]}  Rd5 {[%clk 0:00:45]} 26. Re2 {[%clk 0:00:35]}  Rcd8 {[%clk 0:00:43]} 27. Rae1 {[%clk 0:00:35]}  e6 {[%clk 0:00:42]} 28. Qh4 {[%clk 0:00:31]}  Kg7 {[%clk 0:00:41]} 29. f3 {[%clk 0:00:20]}  Rd2 {[%clk 0:00:24]} 30. Qf2 {[%clk 0:00:19]}  Rxe2 {[%clk 0:00:22]} 31. Qxe2 {[%clk 0:00:19]}  Qd6 {[%clk 0:00:19]} 32. Qe5 {[%clk 0:00:18]}  Qxe5 {[%clk 0:00:17]} 33. Rxe5 {[%clk 0:00:18]}  Nd5 {[%clk 0:00:16]} 34. Re2 {[%clk 0:00:13]}  Nf4 {[%clk 0:00:15]} 35. Re4 {[%clk 0:00:11]}  g5 {[%clk 0:00:14]} 36. b4 {[%clk 0:00:11]}  Rd2 {[%clk 0:00:13]} 37. Bf1 {[%clk 0:00:10]}  axb4 {[%clk 0:00:10]} 38. Rxb4 {[%clk 0:00:09]}  Rd7 {[%clk 0:00:09]} 39. h4 {[%clk 0:00:09]}  h6 {[%clk 0:00:09]} 40. hxg5 {[%clk 0:00:10]}  hxg5 {[%clk 0:00:10]} 41. Kf2 {[%clk 0:00:10]}  Rc7 {[%clk 0:00:08]} 42. a5 {[%clk 0:00:10]}  Nd5 {[%clk 0:00:06]} 43. Rb5 {[%clk 0:00:09]}  Kf6 {[%clk 0:00:05]} 44. c4 {[%clk 0:00:09]}  Nf4 {[%clk 0:00:04]} 45. Rb6 {[%clk 0:00:09]}  Ng6 {[%clk 0:00:04]} 46. a6 {[%clk 0:00:09]}  bxa6 {[%clk 0:00:03]} 47. Rxa6 {[%clk 0:00:10]}  Ne5 {[%clk 0:00:04]} 48. Ra4 {[%clk 0:00:10]}  Nd7 {[%clk 0:00:03]} 49. Be2 {[%clk 0:00:10]}  Nc5 {[%clk 0:00:04]} 50. Ra8 {[%clk 0:00:10]}  Ke5 {[%clk 0:00:04]} 51. Rh8 {[%clk 0:00:11]}  f6 {[%clk 0:00:05]} 52. Re8 {[%clk 0:00:10]}  Ra7 {[%clk 0:00:05]} 53. Rf8 {[%clk 0:00:10]}  Ra2 {[%clk 0:00:04]} 54. Rc8 {[%clk 0:00:10]}  Nd3+ {[%clk 0:00:04]} 55. Ke3 {[%clk 0:00:10]}  Nf4 {[%clk 0:00:04]} 56. Bf1 {[%clk 0:00:09]}  Nxg2+ {[%clk 0:00:04]} 57. Bxg2 {[%clk 0:00:09]}  Rxg2 {[%clk 0:00:04]} 58. c5 {[%clk 0:00:10]}  Rc2 {[%clk 0:00:04]} 59. Kd3 {[%clk 0:00:10]}  Rc1 {[%clk 0:00:04]} 60. Kd2 {[%clk 0:00:11]}  Rc4 {[%clk 0:00:04]} 61. Kd3 {[%clk 0:00:11]}  Rd4+ {[%clk 0:00:05]} 62. Kc3 {[%clk 0:00:11]}  Rf4 {[%clk 0:00:04]} 63. c6 {[%clk 0:00:12]}  Rxf3+ {[%clk 0:00:05]} 64. Kc4 {[%clk 0:00:12]}  Kd6 {[%clk 0:00:05]} 65. Kb5 {[%clk 0:00:12]}  Rb3+ {[%clk 0:00:04]} 66. Ka6 {[%clk 0:00:12]}  f5 {[%clk 0:00:03]} 67. Rg8 {[%clk 0:00:11]}  Kxc6 {[%clk 0:00:02]} 68. Rc8+ {[%clk 0:00:10]}  Kd5 {[%clk 0:00:03]} 69. Rc3 {[%clk 0:00:10]}  Rxc3 {[%clk 0:00:02]} 0-1


[Site "https://www.chess.com"]

[Event "Early Titled Tuesday Blitz | February 8 2022"]
[White "Bambino Filho, Antonio Carlos"]
[Black "Madaminov, Mukhiddin"]
[WhiteFideId "2113163"]
[BlackFideId "14210703"]
[WhiteElo "2461"]
[BlackElo "1916"]
[Result "0-1"]
[Round "06"]
[TimeControl "180+1"]
[Date "2022.02.08"]
[WhiteClock "0:00:30"]
[BlackClock "0:02:30"]

1. d4 {[%clk 0:03:00]}  Nf6 {[%clk 0:03:00]} 2. c4 {[%clk 0:03:01]}  e6 {[%clk 0:03:01]} 3. Nc3 {[%clk 0:03:01]}  d5 {[%clk 0:03:01]} 4. cxd5 {[%clk 0:02:59]}  Nxd5 {[%clk 0:03:02]} 5. e4 {[%clk 0:02:58]}  Nxc3 {[%clk 0:03:02]} 6. bxc3 {[%clk 0:02:59]}  c5 {[%clk 0:03:03]} 7. Nf3 {[%clk 0:02:51]}  cxd4 {[%clk 0:03:03]} 8. cxd4 {[%clk 0:02:52]}  Be7 {[%clk 0:03:03]} 9. Bd3 {[%clk 0:02:51]}  O-O {[%clk 0:03:04]} 10. O-O {[%clk 0:02:51]}  b6 {[%clk 0:03:04]} 11. Bb2 {[%clk 0:02:45]}  Bb7 {[%clk 0:03:04]} 12. Qe2 {[%clk 0:02:46]}  Nd7 {[%clk 0:03:05]} 13. Rad1 {[%clk 0:02:33]}  Nf6 {[%clk 0:03:03]} 14. d5 {[%clk 0:02:25]}  exd5 {[%clk 0:03:03]} 15. e5 {[%clk 0:02:26]}  Nd7 {[%clk 0:03:04]} 16. Nd4 {[%clk 0:02:18]}  Nc5 {[%clk 0:03:00]} 17. Bb1 {[%clk 0:02:13]}  Re8 {[%clk 0:02:57]} 18. Kh1 {[%clk 0:02:00]}  Bf8 {[%clk 0:02:54]} 19. f4 {[%clk 0:02:01]}  Ba6 {[%clk 0:02:52]} 20. Qh5 {[%clk 0:01:41]}  g6 {[%clk 0:02:50]} 21. Qg4 {[%clk 0:01:38]}  Bxf1 {[%clk 0:02:45]} 22. Rxf1 {[%clk 0:01:38]}  Qd7 {[%clk 0:02:41]} 23. Nf5 {[%clk 0:00:40]}  Rad8 {[%clk 0:02:36]} 24. Qg5 {[%clk 0:00:30]}  Ne4 {[%clk 0:02:32]} 25. Bxe4 {[%clk 0:00:29]}  dxe4 {[%clk 0:02:32]} 26. Nh6+ {[%clk 0:00:29]}  Bxh6 {[%clk 0:02:32]} 27. Qxh6 {[%clk 0:00:30]}  Qb5 {[%clk 0:02:30]} 0-1


[Site "https://www.chess.com"]

[Event "Early Titled Tuesday Blitz | February 8 2022"]
[White "Barrientos, Sergio E"]
[Black "Jarocka, Liwia"]
[WhiteFideId "4401824"]
[BlackFideId "21807558"]
[WhiteElo "2441"]
[BlackElo "1896"]
[Result "1-0"]
[Round "06"]
[TimeControl "180+1"]
[Date "2022.02.08"]
[WhiteClock "0:00:45"]
[BlackClock "0:00:09"]

1. e4 {[%clk 0:03:00]}  e5 {[%clk 0:02:56]} 2. d4 {[%clk 0:03:00]}  exd4 {[%clk 0:02:56]} 3. Nf3 {[%clk 0:03:01]}  Nc6 {[%clk 0:02:56]} 4. c3 {[%clk 0:03:01]}  d5 {[%clk 0:02:55]} 5. exd5 {[%clk 0:03:01]}  Qxd5 {[%clk 0:02:56]} 6. cxd4 {[%clk 0:03:02]}  Bg4 {[%clk 0:02:53]} 7. Nc3 {[%clk 0:03:03]}  Bb4 {[%clk 0:02:53]} 8. Be2 {[%clk 0:03:00]}  Bxf3 {[%clk 0:02:52]} 9. Bxf3 {[%clk 0:03:00]}  Qc4 {[%clk 0:02:52]} 10. Bxc6+ {[%clk 0:02:51]}  Qxc6 {[%clk 0:02:50]} 11. O-O {[%clk 0:02:47]}  Bxc3 {[%clk 0:02:40]} 12. bxc3 {[%clk 0:02:48]}  O-O-O {[%clk 0:02:21]} 13. Qb3 {[%clk 0:02:42]}  Nf6 {[%clk 0:02:18]} 14. Rb1 {[%clk 0:02:41]}  b6 {[%clk 0:02:15]} 15. Bg5 {[%clk 0:02:37]}  Qd5 {[%clk 0:02:06]} 16. Bxf6 {[%clk 0:02:33]}  gxf6 {[%clk 0:02:04]} 17. Qa4 {[%clk 0:02:31]}  Kb8 {[%clk 0:02:01]} 18. Rb5 {[%clk 0:02:31]}  Qe4 {[%clk 0:01:51]} 19. Rfb1 {[%clk 0:02:30]}  Rhg8 {[%clk 0:01:50]} 20. g3 {[%clk 0:02:30]}  Rg5 {[%clk 0:01:46]} 21. Qc4 {[%clk 0:02:28]}  Rxb5 {[%clk 0:01:42]} 22. Rxb5 {[%clk 0:02:29]}  Qe1+ {[%clk 0:01:39]} 23. Qf1 {[%clk 0:02:29]}  Qe6 {[%clk 0:01:33]} 24. a4 {[%clk 0:02:26]}  f5 {[%clk 0:01:31]} 25. Qd3 {[%clk 0:02:26]}  f4 {[%clk 0:01:28]} 26. Rf5 {[%clk 0:02:15]}  fxg3 {[%clk 0:01:25]} 27. hxg3 {[%clk 0:02:15]}  Qc6 {[%clk 0:01:03]} 28. a5 {[%clk 0:02:13]}  Re8 {[%clk 0:01:00]} 29. d5 {[%clk 0:02:14]}  Re1+ {[%clk 0:00:51]} 30. Kg2 {[%clk 0:02:13]}  Qh6 {[%clk 0:00:50]} 31. Kf3 {[%clk 0:02:06]}  Qh1+ {[%clk 0:00:49]} 32. Kg4 {[%clk 0:02:05]}  Re4+ {[%clk 0:00:46]} 33. f4 {[%clk 0:01:53]}  Re8 {[%clk 0:00:34]} 34. d6 {[%clk 0:01:48]}  Rg8+ {[%clk 0:00:33]} 35. Rg5 {[%clk 0:01:49]}  Rxg5+ {[%clk 0:00:33]} 36. fxg5 {[%clk 0:01:49]}  cxd6 {[%clk 0:00:26]} 37. Qxd6+ {[%clk 0:01:48]}  Kb7 {[%clk 0:00:24]} 38. Qd7+ {[%clk 0:01:45]}  Ka6 {[%clk 0:00:24]} 39. Qxf7 {[%clk 0:01:03]}  bxa5 {[%clk 0:00:19]} 40. Qc4+ {[%clk 0:00:57]}  Kb6 {[%clk 0:00:18]} 41. Qd4+ {[%clk 0:00:58]}  Kb7 {[%clk 0:00:18]} 42. Qd7+ {[%clk 0:00:57]}  Kb6 {[%clk 0:00:17]} 43. Qd8+ {[%clk 0:00:56]}  Ka6 {[%clk 0:00:15]} 44. Qf6+ {[%clk 0:00:55]}  Kb7 {[%clk 0:00:15]} 45. Qf7+ {[%clk 0:00:52]}  Kb6 {[%clk 0:00:15]} 46. Qe6+ {[%clk 0:00:52]}  Kb7 {[%clk 0:00:15]} 47. g6 {[%clk 0:00:51]}  hxg6 {[%clk 0:00:13]} 48. Qf7+ {[%clk 0:00:52]}  Kb8 {[%clk 0:00:11]} 49. Qxg6 {[%clk 0:00:51]}  Qd1+ {[%clk 0:00:11]} 50. Kh3 {[%clk 0:00:50]}  Qh1+ {[%clk 0:00:10]} 51. Kg4 {[%clk 0:00:50]}  Qd1+ {[%clk 0:00:10]} 52. Kh4 {[%clk 0:00:51]}  Qh1+ {[%clk 0:00:09]} 53. Kg5 {[%clk 0:00:50]}  Qc1+ {[%clk 0:00:10]} 54. Kh5 {[%clk 0:00:48]}  Qxc3 {[%clk 0:00:11]} 55. Qe8+ {[%clk 0:00:46]}  Kb7 {[%clk 0:00:11]} 56. g4 {[%clk 0:00:46]}  Qh3+ {[%clk 0:00:10]} 57. Kg5 {[%clk 0:00:46]}  a4 {[%clk 0:00:11]} 58. Qxa4 {[%clk 0:00:46]}  Qe3+ {[%clk 0:00:11]} 59. Kh5 {[%clk 0:00:45]}  Qh3+ {[%clk 0:00:11]} 60. Kg6 {[%clk 0:00:45]}  Qd3+ {[%clk 0:00:10]} 61. Kh6 {[%clk 0:00:45]}  Qe3+ {[%clk 0:00:09]} 62. g5 {[%clk 0:00:45]}  Qh3+ {[%clk 0:00:10]} 63. Kg6 {[%clk 0:00:45]}  Qg4 {[%clk 0:00:09]} 64. Qxg4 {[%clk 0:00:45]} 1-0


[Site "https://www.chess.com"]

[Event "Early Titled Tuesday Blitz | February 8 2022"]
[White "Batsiashvili, Nino"]
[Black "Atzl, Florian"]
[WhiteFideId "13602993"]
[BlackFideId "1635891"]
[WhiteElo "2230"]
[BlackElo "2085"]
[Result "0-1"]
[Round "06"]
[TimeControl "180+1"]
[Date "2022.02.08"]
[WhiteClock "0:00:03"]
[BlackClock "0:00:11"]

1. d4 {[%clk 0:03:00]}  c5 {[%clk 0:02:59]} 2. d5 {[%clk 0:03:00]}  Nf6 {[%clk 0:02:59]} 3. Nc3 {[%clk 0:03:01]}  d6 {[%clk 0:02:55]} 4. e4 {[%clk 0:03:01]}  Nbd7 {[%clk 0:02:52]} 5. f4 {[%clk 0:02:58]}  a6 {[%clk 0:02:52]} 6. a3 {[%clk 0:02:58]}  b5 {[%clk 0:02:52]} 7. Nf3 {[%clk 0:02:57]}  b4 {[%clk 0:02:45]} 8. axb4 {[%clk 0:02:55]}  cxb4 {[%clk 0:02:45]} 9. e5 {[%clk 0:02:48]}  bxc3 {[%clk 0:02:44]} 10. exf6 {[%clk 0:02:48]}  cxb2 {[%clk 0:02:42]} 11. Bxb2 {[%clk 0:02:47]}  gxf6 {[%clk 0:02:40]} 12. Be2 {[%clk 0:02:32]}  Rg8 {[%clk 0:02:29]} 13. O-O {[%clk 0:02:31]}  Nc5 {[%clk 0:02:25]} 14. Nd4 {[%clk 0:02:22]}  Bd7 {[%clk 0:02:02]} 15. Re1 {[%clk 0:02:09]}  Qb6 {[%clk 0:01:55]} 16. Ba3 {[%clk 0:02:09]}  Na4 {[%clk 0:01:50]} 17. Bh5 {[%clk 0:01:51]}  Nc3 {[%clk 0:01:38]} 18. Qd2 {[%clk 0:01:50]}  Nb5 {[%clk 0:01:36]} 19. Bb2 {[%clk 0:01:43]}  Bh6 {[%clk 0:01:29]} 20. Kh1 {[%clk 0:01:39]}  Rc8 {[%clk 0:01:09]} 21. Nxb5 {[%clk 0:01:33]}  Qxb5 {[%clk 0:01:09]} 22. Bxf6 {[%clk 0:01:33]}  Bf8 {[%clk 0:01:04]} 23. Rxe7+ {[%clk 0:01:17]}  Bxe7 {[%clk 0:01:01]} 24. Qe3 {[%clk 0:00:58]}  Kd8 {[%clk 0:00:44]} 25. Qxe7+ {[%clk 0:00:31]}  Kc7 {[%clk 0:00:45]} 26. Bxf7 {[%clk 0:00:31]}  Rgf8 {[%clk 0:00:28]} 27. h3 {[%clk 0:00:27]}  Qc5 {[%clk 0:00:24]} 28. Be6 {[%clk 0:00:20]}  Rcd8 {[%clk 0:00:15]} 29. Rxa6 {[%clk 0:00:19]}  Qb5 {[%clk 0:00:15]} 30. Rc6+ {[%clk 0:00:17]}  Kb8 {[%clk 0:00:14]} 31. Bxd7 {[%clk 0:00:17]}  Qf1+ {[%clk 0:00:14]} 32. Kh2 {[%clk 0:00:17]}  Qxf4+ {[%clk 0:00:14]} 33. Kg1 {[%clk 0:00:18]}  Qxf6 {[%clk 0:00:10]} 34. Qxf6 {[%clk 0:00:06]}  Rxf6 {[%clk 0:00:11]} 35. Be6 {[%clk 0:00:05]}  Kb7 {[%clk 0:00:10]} 36. c4 {[%clk 0:00:04]}  Rxe6 {[%clk 0:00:11]} 37. dxe6 {[%clk 0:00:02]}  Kxc6 {[%clk 0:00:11]} 38. e7 {[%clk 0:00:03]}  Re8 {[%clk 0:00:11]} 0-1


[Site "https://www.chess.com"]

[Event "Early Titled Tuesday Blitz | February 8 2022"]
[White "Bifulco, Michel"]
[Black "Fajdetic, Hrvoje"]
[WhiteFideId "828580"]
[BlackFideId "14501945"]
[WhiteElo "2165"]
[BlackElo "2140"]
[Result "1-0"]
[Round "06"]
[TimeControl "180+1"]
[Date "2022.02.08"]
[WhiteClock "0:00:26"]
[BlackClock "0:00:05"]

1. d4 {[%clk 0:03:00]}  e6 {[%clk 0:02:57]} 2. Nc3 {[%clk 0:03:00]}  d5 {[%clk 0:02:57]} 3. Bf4 {[%clk 0:03:00]}  Nf6 {[%clk 0:02:56]} 4. Nb5 {[%clk 0:03:00]}  Na6 {[%clk 0:02:55]} 5. e3 {[%clk 0:03:00]}  c6 {[%clk 0:02:55]} 6. Nc3 {[%clk 0:03:00]}  Bd6 {[%clk 0:02:55]} 7. Bxd6 {[%clk 0:02:58]}  Qxd6 {[%clk 0:02:56]} 8. Bxa6 {[%clk 0:02:58]}  bxa6 {[%clk 0:02:55]} 9. Nf3 {[%clk 0:02:58]}  a5 {[%clk 0:02:53]} 10. O-O {[%clk 0:02:57]}  O-O {[%clk 0:02:53]} 11. Ne5 {[%clk 0:02:56]}  Nd7 {[%clk 0:02:53]} 12. Nxd7 {[%clk 0:02:47]}  Bxd7 {[%clk 0:02:53]} 13. Na4 {[%clk 0:02:46]}  e5 {[%clk 0:02:53]} 14. Nc5 {[%clk 0:02:45]}  Bf5 {[%clk 0:02:48]} 15. c3 {[%clk 0:02:45]}  Rab8 {[%clk 0:02:45]} 16. Qd2 {[%clk 0:02:28]}  Rb5 {[%clk 0:02:41]} 17. a3 {[%clk 0:02:23]}  Rxc5 {[%clk 0:02:39]} 18. dxc5 {[%clk 0:02:23]}  Qxc5 {[%clk 0:02:39]} 19. b4 {[%clk 0:02:23]}  Qb6 {[%clk 0:02:37]} 20. c4 {[%clk 0:02:17]}  Be6 {[%clk 0:02:29]} 21. c5 {[%clk 0:02:16]}  Qb5 {[%clk 0:02:27]} 22. Rfb1 {[%clk 0:02:13]}  Rb8 {[%clk 0:02:17]} 23. Rb2 {[%clk 0:02:06]}  a4 {[%clk 0:02:08]} 24. h3 {[%clk 0:02:06]}  Rd8 {[%clk 0:02:05]} 25. Rd1 {[%clk 0:01:56]}  d4 {[%clk 0:01:57]} 26. exd4 {[%clk 0:01:55]}  exd4 {[%clk 0:01:37]} 27. Qf4 {[%clk 0:01:44]}  d3 {[%clk 0:01:26]} 28. Rbd2 {[%clk 0:01:39]}  h6 {[%clk 0:01:10]} 29. Qc7 {[%clk 0:01:28]}  Rd7 {[%clk 0:00:44]} 30. Qc8+ {[%clk 0:01:27]}  Kh7 {[%clk 0:00:43]} 31. Qa8 {[%clk 0:01:17]}  Bb3 {[%clk 0:00:39]} 32. Rc1 {[%clk 0:01:13]}  Re7 {[%clk 0:00:36]} 33. Qd8 {[%clk 0:01:09]}  Re2 {[%clk 0:00:19]} 34. Qxd3+ {[%clk 0:00:46]}  Qxd3 {[%clk 0:00:19]} 35. Rxd3 {[%clk 0:00:47]}  a6 {[%clk 0:00:18]} 36. Ra1 {[%clk 0:00:44]}  Bd5 {[%clk 0:00:15]} 37. Re3 {[%clk 0:00:43]}  Rc2 {[%clk 0:00:14]} 38. Re7 {[%clk 0:00:43]}  Bc4 {[%clk 0:00:12]} 39. Rb7 {[%clk 0:00:41]}  Kg6 {[%clk 0:00:11]} 40. Rb6 {[%clk 0:00:40]}  Bb5 {[%clk 0:00:11]} 41. Rb7 {[%clk 0:00:40]}  f5 {[%clk 0:00:11]} 42. f4 {[%clk 0:00:38]}  Kf6 {[%clk 0:00:11]} 43. Rd1 {[%clk 0:00:36]}  Kg6 {[%clk 0:00:08]} 44. Rd6+ {[%clk 0:00:34]}  Kh5 {[%clk 0:00:08]} 45. Rxg7 {[%clk 0:00:33]}  Bc4 {[%clk 0:00:07]} 46. g4+ {[%clk 0:00:32]}  Kh4 {[%clk 0:00:06]} 47. gxf5 {[%clk 0:00:27]}  Bd5 {[%clk 0:00:05]} 48. Rxh6# {[%clk 0:00:26]} 1-0


[Site "https://www.chess.com"]

[Event "Early Titled Tuesday Blitz | February 8 2022"]
[White "Borisova, Ekaterina"]
[Black "Cherniaiev, Tykhon"]
[WhiteFideId "34124184"]
[BlackFideId "14182360"]
[WhiteElo "2034"]
[BlackElo "2289"]
[Result "1/2-1/2"]
[Round "06"]
[TimeControl "180+1"]
[Date "2022.02.08"]
[WhiteClock "0:00:03"]
[BlackClock "0:00:12"]

1. d4 {[%clk 0:02:59]}  Nf6 {[%clk 0:02:48]} 2. c4 {[%clk 0:02:59]}  e6 {[%clk 0:02:47]} 3. Nc3 {[%clk 0:02:59]}  d5 {[%clk 0:02:47]} 4. cxd5 {[%clk 0:02:59]}  exd5 {[%clk 0:02:46]} 5. Bg5 {[%clk 0:02:59]}  Bb4 {[%clk 0:02:46]} 6. Nf3 {[%clk 0:02:58]}  O-O {[%clk 0:02:45]} 7. e3 {[%clk 0:02:55]}  h6 {[%clk 0:02:41]} 8. Bh4 {[%clk 0:02:55]}  Bf5 {[%clk 0:02:41]} 9. Ne5 {[%clk 0:02:53]}  c5 {[%clk 0:02:36]} 10. Be2 {[%clk 0:02:38]}  Nc6 {[%clk 0:02:30]} 11. O-O {[%clk 0:02:30]}  cxd4 {[%clk 0:02:28]} 12. exd4 {[%clk 0:02:29]}  Be7 {[%clk 0:02:25]} 13. Re1 {[%clk 0:02:21]}  Re8 {[%clk 0:02:12]} 14. Bf3 {[%clk 0:02:16]}  Be6 {[%clk 0:02:11]} 15. a3 {[%clk 0:02:09]}  Qb6 {[%clk 0:02:04]} 16. Bxf6 {[%clk 0:01:40]}  Bxf6 {[%clk 0:02:04]} 17. Nxd5 {[%clk 0:01:40]}  Bxd5 {[%clk 0:02:04]} 18. Bxd5 {[%clk 0:01:40]}  Nxe5 {[%clk 0:02:04]} 19. dxe5 {[%clk 0:01:38]}  Bxe5 {[%clk 0:02:04]} 20. Qf3 {[%clk 0:01:30]}  Re7 {[%clk 0:01:59]} 21. g3 {[%clk 0:01:13]}  Kh8 {[%clk 0:01:40]} 22. Re2 {[%clk 0:00:52]}  Rae8 {[%clk 0:01:12]} 23. Rae1 {[%clk 0:00:52]}  Qf6 {[%clk 0:01:09]} 24. Bxb7 {[%clk 0:00:44]}  Bxb2 {[%clk 0:00:56]} 25. Rxe7 {[%clk 0:00:25]}  Rxe7 {[%clk 0:00:56]} 26. Rxe7 {[%clk 0:00:23]}  Qxe7 {[%clk 0:00:56]} 27. Bd5 {[%clk 0:00:23]}  Kg8 {[%clk 0:00:47]} 28. Qb3 {[%clk 0:00:20]}  Bxa3 {[%clk 0:00:41]} 29. Bxf7+ {[%clk 0:00:16]}  Qxf7 {[%clk 0:00:42]} 30. Qxa3 {[%clk 0:00:16]}  Kh7 {[%clk 0:00:37]} 31. h4 {[%clk 0:00:17]}  Qd7 {[%clk 0:00:30]} 32. Qa6 {[%clk 0:00:14]}  Qd4 {[%clk 0:00:26]} 33. Kg2 {[%clk 0:00:14]}  Qe4+ {[%clk 0:00:25]} 34. Kh2 {[%clk 0:00:13]}  Qd4 {[%clk 0:00:23]} 35. Kg2 {[%clk 0:00:13]}  Qb6 {[%clk 0:00:23]} 36. Qd3+ {[%clk 0:00:12]}  Qg6 {[%clk 0:00:22]} 37. Qa3 {[%clk 0:00:10]}  a6 {[%clk 0:00:22]} 38. h5 {[%clk 0:00:08]}  Qc6+ {[%clk 0:00:22]} 39. Kh2 {[%clk 0:00:08]}  Qb5 {[%clk 0:00:22]} 40. g4 {[%clk 0:00:06]}  a5 {[%clk 0:00:21]} 41. Qa2 {[%clk 0:00:03]}  Qe5+ {[%clk 0:00:17]} 42. Kg2 {[%clk 0:00:03]}  Qe4+ {[%clk 0:00:18]} 43. f3 {[%clk 0:00:03]}  Qe5 {[%clk 0:00:12]} 44. Qc2+ {[%clk 0:00:03]}  Kg8 {[%clk 0:00:13]} 45. Qc8+ {[%clk 0:00:04]}  Kf7 {[%clk 0:00:13]} 46. Qb7+ {[%clk 0:00:04]}  Kf6 {[%clk 0:00:13]} 47. Qa6+ {[%clk 0:00:05]}  Kf7 {[%clk 0:00:12]} 48. Qb7+ {[%clk 0:00:05]}  Kf8 {[%clk 0:00:12]} 49. Qa8+ {[%clk 0:00:05]}  Ke7 {[%clk 0:00:12]} 50. Qb7+ {[%clk 0:00:05]}  Kd6 {[%clk 0:00:12]} 51. Qb8+ {[%clk 0:00:04]}  Kd5 {[%clk 0:00:12]} 52. Qb5+ {[%clk 0:00:04]}  Ke6 {[%clk 0:00:12]} 53. Qb6+ {[%clk 0:00:03]}  Kf7 {[%clk 0:00:12]} 54. Qb7+ {[%clk 0:00:03]} 1/2-1/2


[Site "https://www.chess.com"]